bitfinex/quotes_ETHUSD_20230905
["timestamp","ask_amount","ask_price","bid_price","bid_amount"]
[1693926994607,10.0608073,1641.9,1641.3,19.10211689]
[1693926994808,2.1312873,1641.9,1641.5,0.6137]
[1693926995009,2.1312873,1641.9,1641.6,12.79678]
[1693926995169,2.1312873,1641.9,1641.6,18.88839]
[1693926999308,2.1312873,1641.9,1641.6,12.79678]
[1693927000519,2.0812873,1641.9,1641.6,12.79678]
[1693927001905,2.0812873,1641.9,1641.6,14.685646]
[1693927002419,2.0812873,1641.9,1641.6,20.777256]
[1693927002605,2.0812873,1641.9,1641.8,6.09087]
[1693927005484,2.0812873,1641.9,1641.8,12.18174]
[1693927006724,2.0812873,1641.9,1641.8,12.94385648]
[1693927007024,2.0812873,1641.9,1641.8,6.85298648]
[1693927013354,2.0812873,1641.9,1641.8,20.32912013]
[1693927013536,2.0812873,1641.9,1641.8,20.80912013]
[1693927013704,2.0812873,1641.9,1641.8,22.64812013]
[1693927013903,2.13089913,1642.2,1641.8,29.32883439]
[1693927014126,2.13089913,1642.2,1642.0,18.2696]
[1693927014345,30.45,1642.5,1642.1,0.6137]
[1693927014649,2.13050889,1642.5,1642.2,6.70301]
[1693927016071,2.13050889,1642.5,1642.2,12.7924]
[1693927016355,2.13050889,1642.5,1642.3,1.839]
[1693927016562,9.71812586,1643.1,1642.4,21.19865]
[1693927016857,2.12999026,1642.9,1642.4,26.21467772]
[1693927017060,2.12999026,1642.9,1642.4,24.37567772]
[1693927018249,2.12999026,1642.9,1642.4,15.22001346]
[1693927018250,8.21689026,1642.9,1642.4,15.22001346]
[1693927018409,2.12999026,1642.9,1642.4,22.42666426]
[1693927019449,2.12999026,1642.9,1642.4,24.26566426]
[1693927019652,2.12999026,1642.9,1642.7,12.17506]
[1693927019971,2.12999026,1642.9,1642.7,12.78876]
[1693927020334,2.12999026,1642.9,1642.7,3.68071426]
[1693927020659,0.63190586,1643.2,1642.8,1.46177143]
[1693927020858,2.12973105,1643.1,1643.0,0.6137]
[1693927021064,2.12973105,1643.1,1643.0,6.7001]
[1693927021267,6.08546,1643.3,1643.0,6.7001]
[1693927021448,8.21493189,1643.3,1643.0,6.7001]
[1693927021633,0.82149319,1643.2,1643.0,7.45912933]
[1693927021966,2.12947189,1643.3,1643.0,13.54554933]
[1693927022170,2.12947189,1643.3,1643.0,19.63196933]
[1693927022462,2.12947189,1643.3,1643.0,22.69898359]
[1693927022629,2.12947189,1643.3,1643.2,12.17136]
[1693927022816,2.12947189,1643.3,1643.1,6.08569]
[1693927024557,15.12158508,1643.3,1643.0,1.37272933]
[1693927024760,23.04594508,1643.3,1643.0,1.37272933]
[1693927025361,2.95091508,1643.3,1643.0,1.37272933]
[1693927025519,2.12947189,1643.3,1643.0,7.45886933]
[1693927026545,8.21484189,1643.3,1643.0,7.45886933]
[1693927026860,8.21484189,1643.3,1643.0,7.17617521]
[1693927027447,8.21484189,1643.3,1643.0,7.17638521]
[1693927027625,8.21484189,1643.3,1643.0,1.09003521]
[1693927027962,0.82148419,1643.2,1643.0,7.17634521]
[1693927029063,6.90716419,1643.2,1643.0,1.09003521]
[1693927031959,12.99284419,1643.2,1643.0,1.09003521]
[1693927032522,12.99284419,1643.2,1643.0,0.75902933]
[1693927033163,12.99284419,1643.2,1642.8,6.70084]
[1693927033337,6.13828442,1643.1,1642.8,0.6137]
[1693927033539,14.01184,1643.0,1642.6,0.6137]
[1693927033765,14.01184,1643.0,1642.6,6.70159]
[1693927034293,14.01184,1643.0,1642.6,12.78949]
[1693927034677,14.01184,1643.0,1642.6,0.6137]
[1693927034847,6.08722,1642.8,1642.5,0.6137]
[1693927035051,6.08722,1642.8,1642.5,0.5637]
[1693927035497,6.08722,1642.8,1642.5,6.65196]
[1693927035699,6.08722,1642.8,1642.5,0.5637]
[1693927036191,13.575154,1642.9,1642.5,12.74024]
[1693927036192,7.488104,1642.9,1642.5,12.74024]
[1693927036351,7.488104,1642.9,1642.6,7.60224891]
[1693927036552,0.7488104,1642.8,1642.6,7.60224891]
[1693927037058,7.488104,1642.9,1642.6,7.60224891]
[1693927038282,9.70810666,1643.3,1643.0,6.60012]
[1693927039995,3.62266666,1643.3,1643.0,12.68654]
[1693927040381,2.12947189,1643.3,1643.0,12.68654]
[1693927041269,8.21481189,1643.3,1643.0,0.5137]
[1693927041468,14.30015189,1643.3,1643.0,0.5137]
[1693927042414,14.30015189,1643.3,1642.9,0.5137]
[1693927042606,8.21481189,1643.3,1642.9,6.60045]
[1693927042811,8.21481189,1643.3,1642.9,12.68724]
[1693927043296,9.64478708,1643.3,1642.9,12.68724]
[1693927043498,15.73009708,1643.3,1642.9,0.5137]
[1693927044019,9.64475708,1643.3,1642.9,12.68728]
[1693927044396,3.55944708,1643.3,1642.9,18.77407]
[1693927044795,9.64476708,1643.3,1642.9,18.77407]
[1693927048417,0.96447671,1643.2,1642.9,18.77407]
[1693927049113,2.12947189,1643.3,1642.9,18.77407]
[1693927049305,2.12947189,1643.3,1643.1,18.25815]
[1693927049498,2.12947189,1643.3,1643.1,21.32516426]
[1693927049706,0.101,1643.6,1643.2,5.89971426]
[1693927049937,0.101,1643.6,1643.4,0.5137]
[1693927050110,0.101,1643.6,1643.5,19.24741]
[1693927050315,0.101,1643.6,1643.5,0.5137]
[1693927051106,0.101,1643.6,1643.3,12.17027]
[1693927051107,0.101,1643.6,1643.4,0.5137]
[1693927051330,0.101,1643.6,1643.5,1.45378462]
[1693927052746,0.101,1643.6,1643.5,13.62292462]
[1693927053130,0.101,1643.6,1643.5,24.74529334]
[1693927053333,0.101,1643.6,1643.5,30.06429334]
[1693927053640,0.101,1643.6,1643.5,25.15827908]
[1693927053846,0.101,1643.6,1643.5,23.18749462]
[1693927054457,0.101,1643.6,1643.5,17.10292462]
[1693927054823,0.101,1643.6,1643.5,16.62292462]
[1693927055028,0.101,1643.6,1643.5,22.70749462]
[1693927055237,0.101,1643.6,1643.5,11.01835462]
[1693927055414,0.101,1643.6,1643.5,1.45378462]
[1693927055619,0.101,1643.6,1643.5,13.62292462]
[1693927056146,0.101,1643.6,1643.5,19.70749462]
[1693927056367,0.101,1643.6,1643.5,27.78963708]
[1693927057131,0.101,1643.6,1643.5,30.85665134]
[1693927057334,0.101,1643.6,1643.5,32.69565134]
[1693927057546,0.101,1643.6,1643.5,30.85665134]
[1693927058371,0.101,1643.8,1643.5,30.85665134]
[1693927058570,0.73290586,1644.2,1643.7,2.3527]
[1693927058757,0.73290586,1644.2,1643.9,0.5137]
[1693927058976,0.73290586,1644.2,1644.1,0.5137]
[1693927059274,0.73290586,1644.2,1644.1,13.1584]
[1693927059868,0.101,1644.2,1644.1,13.1584]
[1693927060360,0.101,1644.2,1644.1,24.23187626]
[1693927060561,0.63190586,1644.5,1644.1,33.31422626]
[1693927060766,0.63190586,1644.5,1644.3,0.5137]
[1693927060963,0.63190586,1644.5,1644.4,13.15618]
[1693927061139,0.63190586,1644.5,1644.4,19.23742]
[1693927061475,0.63190586,1644.5,1644.4,20.07645046]
[1693927061832,0.63190586,1644.5,1644.4,12.67618]
[1693927062037,0.63190586,1644.5,1644.4,15.74319426]
[1693927062281,0.101,1645.3,1644.8,6.58071426]
[1693927062579,0.101,1645.3,1645.2,24.31312]
[1693927062779,0.101,1645.3,1645.2,6.59198]
[1693927062937,0.101,1645.3,1645.2,0.5137]
[1693927063132,0.101,1645.3,1645.2,6.59198]
[1693927063375,0.101,1645.3,1645.2,0.5137]
[1693927063677,15.25682,1645.3,1644.9,0.5137]
[1693927063888,6.07865,1645.1,1644.9,0.5137]
[1693927064090,7.604002,1645.2,1644.9,0.5137]
[1693927064254,6.07871,1645.1,1644.9,0.5137]
[1693927064762,6.07871,1645.1,1644.8,0.5137]
[1693927065167,3.65269507,1645.2,1644.8,6.59346]
[1693927065369,4.32331307,1645.2,1644.8,20.02031]
[1693927065662,4.32331307,1645.2,1644.8,18.75298]
[1693927065984,14.35287,1645.2,1644.8,0.5137]
[1693927066495,14.35287,1645.2,1645.0,0.5137]
[1693927067054,8.27458,1645.2,1645.0,0.5137]
[1693927067506,2.1963,1645.2,1645.0,0.5137]
[1693927068194,2.1963,1645.2,1645.0,6.5927]
[1693927068379,0.101,1645.3,1645.1,0.9937]
[1693927068692,0.101,1645.3,1645.1,7.07208]
[1693927069193,0.101,1645.3,1645.1,19.22938]
[1693927069354,0.101,1645.3,1645.2,5.41971426]
[1693927069545,0.08495512,1645.3,1645.2,26.54809369]
[1693927070788,0.08495512,1645.3,1645.2,19.22854]
[1693927071367,0.08495512,1645.3,1645.2,22.29555426]
[1693927071567,1e-08,1645.3,1645.2,22.29555426]
[1693927071976,1e-08,1645.3,1645.2,19.22854]
[1693927073611,1e-08,1645.3,1645.2,0.4637]
[1693927073794,6.68566601,1645.3,1645.2,0.4637]
[1693927074715,0.60775601,1645.3,1645.1,0.4637]
[1693927074884,6.68567601,1645.3,1645.1,0.4637]
[1693927075495,6.68567601,1645.3,1645.0,6.54247]
[1693927075717,6.68574601,1645.3,1645.0,6.54247]
[1693927075900,0.60775601,1645.3,1645.0,12.62134]
[1693927076067,1e-08,1645.3,1645.0,18.70036]
[1693927076272,1e-08,1645.3,1645.0,23.60637426]
[1693927076511,1e-08,1645.3,1645.2,0.4637]
[1693927076804,1e-08,1645.3,1645.2,12.62026]
[1693927076991,1e-08,1645.3,1645.2,19.17854]
[1693927077199,1e-08,1645.3,1645.2,21.936146]
[1693927077572,1e-08,1645.3,1645.2,25.00316026]
[1693927077779,1e-08,1645.3,1645.2,26.84216026]
[1693927077975,1e-08,1645.3,1645.2,29.84216026]
[1693927080239,1e-08,1645.3,1645.2,6.54198]
[1693927080735,1e-08,1645.3,1645.2,18.69854]
[1693927081150,1e-08,1645.3,1645.2,21.76555426]
[1693927081443,1e-08,1645.3,1645.2,22.61895986]
[1693927081612,1e-08,1645.3,1645.2,24.45795986]
[1693927081947,0.101,1645.9,1645.3,0.002]
[1693927082246,0.101,1646.9,1646.1,0.4637]
[1693927082449,0.101,1646.9,1646.3,24.75998]
[1693927082638,0.101,1646.9,1646.7,0.4637]
[1693927082943,0.101,1646.9,1646.7,12.60886]
[1693927083246,0.101,1646.9,1646.8,0.9437]
[1693927083400,0.007,1647.7,1647.6,0.4637]
[1693927083597,0.007,1647.7,1647.6,30.08779]
[1693927083942,1.90080777,1649.1,1647.7,7.09919223]
[1693927084143,2.12301347,1648.3,1648.1,18.81623]
[1693927084352,2.12301347,1648.3,1648.1,1.23576423]
[1693927084520,8.19019347,1648.3,1647.8,0.48]
[1693927084703,3.81901935,1648.2,1647.7,6.06875]
[1693927084909,2.95,1647.9,1646.9,6.07168]
[1693927085239,12.13886,1647.6,1647.4,2.428009]
[1693927085439,15.192486,1647.5,1647.4,2.428009]
[1693927085612,2.95,1647.4,1647.0,1.839]
[1693927085812,12.1396,1647.5,1646.7,12.19486]
[1693927086016,12.1396,1647.5,1646.8,0.05]
[1693927086017,6.0706,1647.3,1646.8,0.05]
[1693927086362,2.12430202,1647.3,1647.1,6.07107]
[1693927086564,2.12430202,1647.3,1647.0,6.07152]
[1693927086732,2.12430202,1647.3,1647.1,0.05]
[1693927086926,7.90883,1647.5,1646.7,7.91141]
[1693927087170,2.95,1647.2,1646.6,0.05]
[1693927087464,2.12404418,1647.5,1647.1,1.889]
[1693927087626,2.7066,1647.6,1647.2,6.07059]
[1693927087826,4.83051529,1647.6,1647.1,6.12097]
[1693927088027,14.93994482,1647.6,1647.1,0.05]
[1693927088227,21.00938482,1647.6,1647.1,0.05]
[1693927088871,18.05938482,1647.6,1647.1,0.05]
[1693927089035,11.98994482,1647.6,1647.2,3.11701426]
[1693927089238,9.86602953,1647.6,1647.2,9.18778426]
[1693927089462,8.77604,1647.6,1647.2,9.18778426]
[1693927089651,2.12417309,1647.4,1647.2,9.18778426]
[1693927089859,2.12417309,1647.4,1647.2,0.05]
[1693927090084,6.06944,1647.6,1647.3,3.06701426]
[1693927090244,2.12391529,1647.6,1647.5,0.05]
[1693927090447,2.12391529,1647.6,1647.5,15.73661426]
[1693927090644,2.12391529,1647.6,1647.5,19.35031426]
[1693927090873,6.06716,1648.3,1647.9,0.05]
[1693927091036,6.06716,1648.3,1647.4,0.05]
[1693927091037,2.95,1648.0,1647.4,0.05]
[1693927091232,20.8186,1647.9,1647.0,0.05]
[1693927091440,20.8186,1647.9,1646.8,0.05]
[1693927091441,2.95,1647.6,1646.8,0.05]
[1693927091770,2.95,1647.6,1646.6,6.07285]
[1693927091771,9.02121,1647.2,1646.6,6.12307]
[1693927092074,6.07121,1647.2,1646.6,6.07307]
[1693927092262,2.5551,1647.2,1646.7,0.05]
[1693927092450,2.5551,1647.2,1647.0,0.05]
[1693927092654,2.12430202,1647.3,1647.2,0.05]
[1693927092977,2.12430202,1647.3,1647.2,19.02398605]
[1693927093141,1.48430202,1647.3,1647.2,16.63768605]
[1693927093343,8.62195,1648.3,1648.1,0.05]
[1693927093569,4.67818792,1648.3,1648.1,0.05]
[1693927093974,8.19003792,1648.3,1648.2,0.83169696]
[1693927094686,8.19003792,1648.3,1648.0,0.6137]
[1693927094885,9.61571271,1648.3,1648.0,0.6137]
[1693927095085,9.61561271,1648.3,1648.0,0.6137]
[1693927095266,15.68246271,1648.3,1648.0,0.6137]
[1693927095477,2.613,1648.1,1647.3,6.07022]
[1693927095791,17.70694,1647.9,1647.2,1.262254]
[1693927095967,15.09394,1647.9,1647.2,6.07072]
[1693927096162,15.09394,1647.9,1647.2,6.11372]
[1693927096368,2.5688,1647.8,1647.3,0.6137]
[1693927096704,12.1385,1647.7,1647.4,0.6137]
[1693927096889,16.33991241,1647.7,1647.4,0.6137]
[1693927097470,2.957,1647.6,1647.3,1.42225109]
[1693927097806,18.95291241,1647.7,1647.3,1.42225109]
[1693927097807,15.09734,1647.4,1647.3,1.42225109]
[1693927097964,15.09734,1647.4,1646.9,0.6137]
[1693927098166,2.613,1647.3,1646.9,0.6137]
[1693927098500,12.14388,1647.0,1646.5,0.6137]
[1693927098701,6.07194,1647.0,1646.7,0.6137]
[1693927098905,14.26856888,1647.0,1646.7,0.6137]
[1693927100306,17.33558314,1647.0,1646.7,0.6137]
[1693927100507,14.26856888,1647.0,1646.7,0.6137]
[1693927100710,8.19662888,1647.0,1646.7,0.6137]
[1693927101006,14.26856888,1647.0,1646.7,0.6137]
[1693927101205,16.59827477,1647.0,1646.7,0.6137]
[1693927101631,16.59827477,1647.0,1646.8,3.06701426]
[1693927101632,2.12468888,1647.0,1646.8,3.06701426]
[1693927101790,2.12468888,1647.0,1646.9,6.11501]
[1693927101992,2.12468888,1647.0,1646.8,0.043]
[1693927102396,2.12468888,1647.0,1646.7,6.6864]
[1693927102736,2.12468888,1647.0,1646.8,0.043]
[1693927102941,8.19633888,1647.0,1646.7,0.6137]
[1693927103237,14.26798888,1647.0,1646.7,0.6137]
[1693927105160,16.30192377,1647.0,1646.7,0.6137]
[1693927105441,15.17605942,1647.0,1646.7,0.5637]
[1693927105638,7.07047453,1647.0,1646.7,6.63641]
[1693927105832,0.99882453,1647.0,1646.7,6.63641]
[1693927105995,7.07048453,1647.0,1646.7,6.63641]
[1693927106194,8.38466898,1647.0,1646.7,6.63641]
[1693927106394,2.613,1646.9,1646.6,0.78745866]
[1693927106630,12.14476,1646.8,1646.6,0.78745866]
[1693927106999,18.21714,1646.8,1646.6,0.78745866]
[1693927107195,5.57,1646.7,1646.6,0.78745866]
[1693927107450,5.57,1646.7,1645.6,0.61293205]
[1693927107451,18.2199,1646.6,1645.8,0.6137]
[1693927107664,5.57,1646.5,1645.9,0.043]
[1693927107852,12.1483,1646.4,1645.9,0.043]
[1693927108006,18.22245,1646.4,1646.0,0.6137]
[1693927108203,8.19961305,1646.4,1646.0,0.6137]
[1693927108435,14.27376305,1646.4,1646.0,6.6889]
[1693927109037,22.67835535,1646.4,1645.9,0.043]
[1693927109329,18.22434,1646.2,1645.8,0.6137]
[1693927109537,20.35006491,1646.2,1645.8,0.6137]
[1693927109695,20.35006491,1646.2,1645.8,0.6567]
[1693927110510,20.35006491,1646.2,1645.7,0.6137]
[1693927110699,12.15075,1646.0,1645.7,0.6137]
[1693927111527,12.15075,1646.0,1645.7,0.5637]
[1693927111940,12.15075,1646.0,1645.6,0.5567]
[1693927111941,18.22615,1646.0,1645.6,0.5567]
[1693927112112,18.22615,1646.0,1645.6,0.5137]
[1693927112302,1.822615,1645.9,1645.6,0.5137]
[1693927112637,12.15214,1645.8,1645.6,0.5137]
[1693927112933,12.15214,1645.8,1645.4,0.5567]
[1693927113139,12.15214,1645.8,1645.4,1.16963205]
[1693927113309,12.15214,1645.8,1645.6,0.5137]
[1693927114195,20.314939,1645.8,1645.6,0.5137]
[1693927114398,14.238869,1645.8,1645.6,0.5137]
[1693927114702,20.314939,1645.8,1645.4,0.5137]
[1693927115043,14.238869,1645.8,1645.7,0.72136124]
[1693927115409,14.238869,1645.8,1645.4,0.5567]
[1693927115610,11.32813,1645.9,1645.4,0.5567]
[1693927115941,8.71513,1645.9,1645.4,12.71178]
[1693927116130,14.79108,1645.9,1645.4,6.63424]
[1693927116325,14.79108,1645.9,1645.4,0.5567]
[1693927116526,23.93404426,1645.9,1645.4,0.5137]
[1693927116730,5.35040443,1645.8,1645.5,0.5137]
[1693927116928,12.15288,1645.7,1645.5,0.5137]
[1693927117627,6.07644,1645.7,1645.3,0.5137]
[1693927117828,8.20135947,1646.0,1645.3,0.5137]
[1693927117829,2.12597947,1646.0,1645.8,0.043]
[1693927118028,2.12597947,1646.0,1645.9,6.0757]
[1693927118343,6.07478,1646.2,1645.8,0.043]
[1693927118642,13.636712,1646.2,1645.7,0.5137]
[1693927118801,13.636712,1646.2,1645.8,0.043]
[1693927119230,2.12597947,1646.0,1645.8,0.043]
[1693927119637,1.4922873,1646.0,1645.8,12.19484]
[1693927119828,1.4922873,1646.0,1645.8,12.70854]
[1693927120246,4.84689213,1646.3,1645.8,12.70854]
[1693927120552,16.99535213,1646.3,1645.8,0.5567]
[1693927120757,16.99535213,1646.3,1645.8,6.63274]
[1693927121058,16.99535213,1646.3,1645.8,0.5567]
[1693927121359,16.99535213,1646.3,1645.8,0.043]
[1693927121560,1.69953521,1646.2,1645.8,0.043]
[1693927121765,7.77425521,1646.2,1645.8,0.043]
[1693927122121,20.84077,1645.9,1645.5,0.6137]
[1693927122322,12.15288,1645.7,1645.5,0.6137]
[1693927122522,13.67486943,1645.7,1645.5,0.6137]
[1693927122923,7.59842943,1645.7,1645.5,0.6137]
[1693927123164,2.12623777,1645.8,1645.5,6.69079]
[1693927123333,2.12623777,1645.8,1645.5,0.6137]
[1693927123523,2.12623777,1645.8,1645.7,6.11944]
[1693927123723,2.12623777,1645.8,1645.7,12.80958]
[1693927124004,2.12623777,1645.8,1645.7,21.95303426]
[1693927124173,2.12623777,1645.8,1645.7,22.43303426]
[1693927124464,2.12585034,1646.1,1645.7,22.43303426]
[1693927124672,2.12585034,1646.1,1645.9,6.0757]
[1693927125174,2.12585034,1646.1,1645.9,6.1187]
[1693927125341,2.12585034,1646.1,1645.9,15.26141426]
[1693927125541,2.12585034,1646.1,1646.0,2.00614143]
[1693927125744,2.12585034,1646.1,1646.0,20.23213143]
[1693927126340,2.12585034,1646.1,1646.0,20.93515916]
[1693927126727,0.999393,1646.1,1646.0,20.93515916]
[1693927127370,0.999393,1646.1,1646.0,24.00217342]
[1693927128103,0.999393,1646.1,1646.0,17.92684342]
[1693927128270,0.999393,1646.1,1646.0,18.92901773]
[1693927128469,0.999393,1646.1,1646.0,6.77835773]
[1693927128692,0.999393,1646.1,1646.0,0.70302773]
[1693927130115,16.21632726,1646.1,1645.8,0.6137]
[1693927130404,7.69715273,1646.0,1645.8,0.6137]
[1693927130570,7.69715273,1646.0,1645.7,0.6137]
[1693927130908,10.14136726,1646.1,1645.7,12.76655]
[1693927130909,0.999393,1646.1,1645.7,12.76655]
[1693927131206,7.074383,1646.1,1645.7,0.6137]
[1693927131363,16.21638726,1646.1,1645.7,0.6137]
[1693927131990,22.29137726,1646.1,1645.6,0.6137]
[1693927132160,3.06701426,1646.0,1645.6,0.6137]
[1693927132361,6.38267143,1645.9,1645.6,0.6137]
[1693927132997,6.38267143,1645.9,1645.7,0.6137]
[1693927133303,12.45864143,1645.9,1645.7,0.6137]
[1693927133603,8.72257,1646.0,1645.7,0.6137]
[1693927133763,8.72243,1646.0,1645.7,0.6137]
[1693927133967,8.72243,1646.0,1645.6,0.6137]
[1693927134480,14.79794,1646.0,1645.6,0.6137]
[1693927134801,20.87345,1646.0,1645.6,0.6137]
[1693927135098,6.07613,1645.8,1645.5,0.6567]
[1693927135527,12.15226,1645.8,1645.5,0.6137]
[1693927135690,18.22839,1645.8,1645.5,0.6137]
[1693927135891,18.22839,1645.8,1645.3,0.6567]
[1693927136233,7.899479,1645.7,1645.3,6.73461]
[1693927137126,13.976119,1645.7,1645.3,6.73456]
[1693927137285,1.822839,1645.7,1645.3,18.89038]
[1693927137487,6.07658,1645.7,1645.3,6.73456]
[1693927137719,6.07658,1645.7,1645.3,0.6567]
[1693927137894,6.07658,1645.7,1645.5,0.6137]
[1693927138299,6.07644,1645.7,1645.4,1.27095828]
[1693927138627,11.120125,1645.9,1645.4,13.42599828]
[1693927138838,1.1120125,1645.8,1645.4,13.42599828]
[1693927138989,9.31432027,1645.8,1645.4,7.34845828]
[1693927139601,9.31432027,1645.8,1645.4,1.27095828]
[1693927139801,15.39039027,1645.8,1645.4,1.27095828]
[1693927140190,27.14647453,1645.8,1645.4,1.22095828]
[1693927140392,3.23825027,1645.8,1645.5,6.69087]
[1693927140588,2.12623777,1645.8,1645.6,0.043]
[1693927140820,2.12623777,1645.8,1645.7,6.07644]
[1693927141016,2.12623777,1645.8,1645.6,6.11967]
[1693927141193,2.12623777,1645.8,1645.7,0.6137]
[1693927141406,8.72225,1646.0,1645.7,1.2687162]
[1693927141589,10.202001,1646.0,1645.7,1.2687162]
[1693927141797,18.40333047,1646.0,1645.7,1.2687162]
[1693927142696,3.06701426,1645.9,1645.7,0.6550162]
[1693927142908,12.15214,1645.8,1645.7,0.6550162]
[1693927143104,8.20556543,1645.8,1645.4,6.73424]
[1693927143546,10.202131,1646.0,1645.4,18.84632]
[1693927143722,10.202131,1646.0,1645.6,0.043]
[1693927143723,2.12623777,1645.8,1645.6,0.043]
[1693927144039,2.12623777,1645.8,1645.6,6.73317]
[1693927144411,10.84821947,1646.0,1645.6,6.73317]
[1693927145152,4.77287947,1646.0,1645.6,12.80998]
[1693927145311,4.77287947,1646.0,1645.6,18.88679]
[1693927145737,4.77287947,1646.0,1645.6,12.80998]
[1693927147658,10.84833947,1646.0,1645.6,6.68317]
[1693927148474,2.12597947,1646.0,1645.9,0.043]
[1693927149062,2.12597947,1646.0,1645.7,6.73299]
[1693927150227,8.20139947,1646.0,1645.7,0.6137]
[1693927150442,0.82013995,1645.9,1645.6,0.6137]
[1693927150891,0.82013995,1645.9,1645.6,6.69041]
[1693927151242,6.89585995,1645.9,1645.6,0.6137]
[1693927151454,6.89585995,1645.9,1645.7,0.6137]
[1693927151455,3.06701426,1645.8,1645.7,0.6137]
[1693927151656,8.28749942,1645.8,1645.7,0.6137]
[1693927151850,11.35451368,1645.8,1645.7,0.6137]
[1693927152084,17.43058368,1645.8,1645.7,0.6137]
[1693927152454,23.50665368,1645.8,1645.4,0.6137]
[1693927153540,23.50665368,1645.8,1645.4,0.5637]
[1693927153748,2.35066537,1645.7,1645.3,12.71203]
[1693927154053,8.28749942,1645.8,1645.5,0.5567]
[1693927154255,2.21142942,1645.8,1645.5,0.5567]
[1693927154460,2.5616,1645.9,1645.5,12.71094]
[1693927155047,2.5616,1645.9,1645.5,0.5567]
[1693927155246,17.78001426,1645.9,1645.5,0.5567]
[1693927155658,17.78001426,1645.9,1645.4,0.5137]
[1693927155988,13.93046143,1645.8,1645.4,0.5137]
[1693927156346,16.99747569,1645.8,1645.5,1.19796683]
[1693927156784,23.07385569,1645.8,1645.5,1.19796683]
[1693927156956,2.613,1645.7,1645.5,1.19796683]
[1693927157156,18.23043,1645.6,1645.5,0.68426683]
[1693927157365,23.38178726,1645.6,1645.5,0.68426683]
[1693927157783,23.38178726,1645.6,1645.3,0.6137]
[1693927157996,8.63701426,1645.5,1645.3,0.6137]
[1693927158194,8.63701426,1645.5,1645.3,0.5637]
[1693927158367,6.02401426,1645.5,1645.2,0.5137]
[1693927158687,0.60240143,1645.4,1645.2,0.5137]
[1693927159051,2.5133,1645.5,1645.2,12.67007]
[1693927159252,2.5133,1645.5,1645.3,0.043]
[1693927159451,2.5133,1645.5,1645.3,6.12072]
[1693927160285,2.5133,1645.5,1645.3,0.043]
[1693927160590,5.58031426,1645.5,1645.2,0.5137]
[1693927160800,3.62504569,1645.4,1645.2,0.5137]
[1693927161286,9.70282569,1645.4,1645.2,0.5137]
[1693927161446,11.82958026,1645.4,1645.2,0.5137]
[1693927163792,11.82958026,1645.4,1645.1,0.5567]
[1693927164087,2.12675457,1645.4,1645.1,12.71399]
[1693927164790,2.12675457,1645.4,1645.2,2.613]
[1693927164982,2.12675457,1645.4,1645.3,6.07791]
[1693927166688,2.12675457,1645.4,1645.2,15.28295]
[1693927166885,2.12675457,1645.4,1645.2,9.20482]
[1693927167809,2.59076003,1645.4,1645.2,0.5137]
[1693927168867,2.59076003,1645.4,1645.1,0.5567]
[1693927169066,2.59076003,1645.4,1645.1,6.63533]
[1693927170299,2.59076003,1645.4,1645.1,0.5567]
[1693927170510,5.65777429,1645.4,1645.1,0.5567]
[1693927170690,0.56577743,1645.3,1645.1,0.5567]
[1693927171005,0.56577743,1645.3,1645.2,0.5137]
[1693927171309,2.59076003,1645.4,1645.2,0.5137]
[1693927171465,2.59076003,1645.4,1645.2,1.11098011]
[1693927173336,2.12675457,1645.4,1645.2,3.72398011]
[1693927173510,2.12675457,1645.4,1645.2,15.88009011]
[1693927173711,2.12675457,1645.4,1645.3,0.043]
[1693927173924,2.12675457,1645.4,1645.3,18.27673]
[1693927174242,2.12675457,1645.4,1645.3,18.79043]
[1693927174444,2.6933,1645.8,1645.3,18.79043]
[1693927174733,2.12636695,1645.7,1645.6,6.59051]
[1693927175034,2.6933,1645.8,1645.6,9.20351]
[1693927175442,2.12597947,1646.0,1645.6,9.20351]
[1693927175601,2.12597947,1646.0,1645.9,2.656]
[1693927176140,2.12597947,1646.0,1645.9,14.8074]
[1693927176345,2.12597947,1646.0,1645.9,21.3631]
[1693927177337,2.12597947,1646.0,1645.9,8.7317]
[1693927177711,2.12597947,1646.0,1645.9,14.8074]
[1693927178209,2.12597947,1646.0,1645.9,14.7644]
[1693927178418,2.12597947,1646.0,1645.9,14.8074]
[1693927178622,2.12597947,1646.0,1645.9,8.7317]
[1693927180385,2.12597947,1646.0,1645.9,14.8074]
[1693927181368,2.12597947,1646.0,1645.9,25.37555983]
[1693927181562,2.12597947,1646.0,1645.9,28.85555983]
[1693927181763,3.34385312,1646.6,1646.3,0.043]
[1693927181966,3.34385312,1646.6,1646.4,3.1267]
[1693927185421,2.7077,1646.6,1646.4,3.1267]
[1693927186404,2.7077,1646.6,1646.3,0.5567]
[1693927186605,2.7077,1646.6,1646.5,0.60099781]
[1693927187199,2.7077,1646.6,1646.3,6.6309]
[1693927187506,2.7077,1646.6,1646.3,0.5567]
[1693927187996,2.7077,1646.6,1646.3,0.5137]
[1693927189085,4.83290493,1646.6,1646.3,0.5137]
[1693927189398,0.48329049,1646.5,1646.3,0.5137]
[1693927191472,4.83290493,1646.6,1646.3,6.07414]
[1693927191772,2.12520493,1646.6,1646.5,2.656]
[1693927191975,2.12520493,1646.6,1646.5,8.72948]
[1693927192180,2.12520493,1646.6,1646.5,15.26666]
[1693927192371,2.5717,1646.9,1646.5,15.26666]
[1693927192570,2.12494688,1646.8,1646.7,2.613]
[1693927192866,2.12494688,1646.8,1646.7,8.72866]
[1693927193503,2.12494688,1646.8,1646.7,20.87416]
[1693927193674,2.12494688,1646.8,1646.7,21.35416]
[1693927193865,2.12494688,1646.8,1646.7,21.81786]
[1693927194381,1.05590728,1647.1,1646.7,21.81786]
[1693927194697,1.05590728,1647.1,1646.9,3.0767]
[1693927194911,0.62361194,1647.1,1646.9,3.0767]
[1693927195120,0.62361194,1647.1,1646.9,0.4637]
[1693927196102,0.62361194,1647.1,1646.8,6.07218]
[1693927196103,3.6906262,1647.1,1646.8,0.4637]
[1693927197037,3.6906262,1647.1,1646.7,0.4637]